[Event "*** Titled Tuesday Blitz"]
[Site "Chess.com"]
[Date "2020.02.04"]
[Round "5"]
[White "novocane"]
[Black "goldenspine"]
[Result "0-1"]
[WhiteElo "2140"]
[BlackElo "2330"]
[TimeControl "180+2"]
[EndTime "14:09:10 PST"]
[Termination "goldenspine won by resignation"]

1. d4 {[%clk 0:03:01.8]} 1... Nf6 {[%clk 0:03:00.4]} 2. c4 {[%clk 0:03:00.7]}
2... g6 {[%clk 0:03:01.4]} 3. Nc3 {[%clk 0:02:45.7]} 3... d5 {[%clk 0:03:02.4]}
4. cxd5 {[%clk 0:02:34.9]} 4... Nxd5 {[%clk 0:03:04.3]} 5. e4 {[%clk 0:02:32.9]}
5... Nxc3 {[%clk 0:03:04.8]} 6. bxc3 {[%clk 0:02:34.8]} 6... Bg7 {[%clk
0:03:06.6]} 7. Qa4+ {[%clk 0:02:16.3]} 7... Nd7 {[%clk 0:03:05.4]} 8. Nf3 {[%clk
0:01:56.6]} 8... O-O {[%clk 0:03:05.1]} 9. Ba3 {[%clk 0:01:31.7]} 9... c5 {[%clk
0:03:03.8]} 10. Rd1 {[%clk 0:01:28.9]} 10... Qc7 {[%clk 0:02:46.5]} 11. Qb3
{[%clk 0:01:05.5]} 11... cxd4 {[%clk 0:02:38.2]} 12. cxd4 {[%clk 0:01:05.6]}
12... Nf6 {[%clk 0:02:38.8]} 13. Bd3 {[%clk 0:01:04.8]} 13... Bg4 {[%clk
0:02:05]} 14. O-O {[%clk 0:01:01]} 14... Nh5 {[%clk 0:02:00.2]} 15. Be2 {[%clk
0:00:56.5]} 15... Nf4 {[%clk 0:02:00.1]} 16. Qe3 {[%clk 0:00:55.4]} 16... Bh6
{[%clk 0:01:09.9]} 17. Kh1 {[%clk 0:00:48.2]} 17... Kg7 {[%clk 0:00:55.4]} 18.
Bb2 {[%clk 0:00:29]} 18... Qc2 {[%clk 0:00:56]} 19. Rd2 {[%clk 0:00:26.1]} 19...
Qa4 {[%clk 0:00:57.1]} 20. d5+ {[%clk 0:00:26.5]} 20... f6 {[%clk 0:00:56.4]}
21. Qd4 {[%clk 0:00:18.9]} 21... Qxd4 {[%clk 0:00:45.3]} 22. Bxd4 {[%clk
0:00:16.9]} 22... Nxg2 {[%clk 0:00:38.6]} 23. Rb2 {[%clk 0:00:17.8]} 23... Nf4
{[%clk 0:00:35.3]} 24. Bc4 {[%clk 0:00:12.1]} 24... b6 {[%clk 0:00:36]} 25. Nd2
{[%clk 0:00:10.3]} 25... Rac8 {[%clk 0:00:36]} 26. f3 {[%clk 0:00:11.5]} 26...
Bh3 {[%clk 0:00:36.4]} 27. Rfb1 {[%clk 0:00:09.6]} 27... Rfd8 {[%clk 0:00:31.5]}
28. Ba6 {[%clk 0:00:10.5]} 28... Rc7 {[%clk 0:00:29.3]} 29. Be3 {[%clk
0:00:10.6]} 29... e5 {[%clk 0:00:20.7]} 30. Bxf4 {[%clk 0:00:08.9]} 30... Bxf4
{[%clk 0:00:22.6]} 31. Nc4 {[%clk 0:00:07.9]} 31... Bc8 {[%clk 0:00:19]} 32.
Bxc8 {[%clk 0:00:03]} 32... Rdxc8 {[%clk 0:00:20]} 33. Nd6 {[%clk 0:00:04]}
33... Rd8 {[%clk 0:00:20.4]} 34. Nb5 {[%clk 0:00:04.5]} 34... Rcd7 {[%clk
0:00:19.7]} 35. Kg2 {[%clk 0:00:05.7]} 35... f5 {[%clk 0:00:20.8]} 36. Nc3
{[%clk 0:00:05.3]} 36... Rc8 {[%clk 0:00:21.2]} 37. Rb3 {[%clk 0:00:05.9]} 37...
Rdc7 {[%clk 0:00:22]} 38. Ne2 {[%clk 0:00:05.5]} 38... Rc2 {[%clk 0:00:23]} 39.
R3b2 {[%clk 0:00:05.8]} 39... Be3 {[%clk 0:00:24.1]} 40. Kf1 {[%clk 0:00:05.3]}
40... R8c4 {[%clk 0:00:20.3]} 41. exf5 {[%clk 0:00:04.7]} 41... gxf5 {[%clk
0:00:21]} 42. Ng3 {[%clk 0:00:05.9]} 42... Kf6 {[%clk 0:00:21.1]} 43. Rxc2
{[%clk 0:00:04.7]} 43... Rxc2 {[%clk 0:00:21.9]} 44. Rd1 {[%clk 0:00:05.6]}
44... Rf2+ {[%clk 0:00:20.6]} 45. Ke1 {[%clk 0:00:07.2]} 45... Rxf3 {[%clk
0:00:20.2]} 46. Ke2 {[%clk 0:00:08.6]} 46... e4 {[%clk 0:00:20.3]} 47. d6 {[%clk
0:00:08.1]} 47... Bg5 {[%clk 0:00:14]} 48. d7 {[%clk 0:00:09.1]} 48... Re3+
{[%clk 0:00:10.9]} 49. Kf2 {[%clk 0:00:09.8]} 49... Ke5 {[%clk 0:00:11.3]} 50.
d8=Q {[%clk 0:00:10.7]} 50... Bxd8 {[%clk 0:00:12.7]} 51. Rxd8 {[%clk 0:00:11]}
51... Ra3 {[%clk 0:00:13.7]} 52. Re8+ {[%clk 0:00:09.3]} 52... Kf4 {[%clk
0:00:14.6]} 53. Rf8 {[%clk 0:00:07.8]} 53... Rxa2+ {[%clk 0:00:15.5]} 54. Kf1
{[%clk 0:00:07.8]} 54... Rxh2 {[%clk 0:00:11.3]} 55. Nxf5 {[%clk 0:00:08.3]}
55... Ke5 {[%clk 0:00:12]} 56. Ng3 {[%clk 0:00:09.1]} 56... Kd4 {[%clk
0:00:11.1]} 57. Rf4 {[%clk 0:00:07.5]} 57... Rh3 {[%clk 0:00:06]} 58. Rxe4+
{[%clk 0:00:08]} 58... Kd3 {[%clk 0:00:06.5]} 59. Rg4 {[%clk 0:00:07.7]} 59...
h5 {[%clk 0:00:05.3]} 60. Rg5 {[%clk 0:00:06.8]} 60... h4 {[%clk 0:00:06.5]} 61.
Nf5 {[%clk 0:00:07.2]} 61... Rf3+ {[%clk 0:00:07.4]} 62. Ke1 {[%clk 0:00:08.7]}
62... h3 {[%clk 0:00:08.2]} 63. Rh5 {[%clk 0:00:10.2]} 63... b5 {[%clk
0:00:08.4]} 64. Nd6 {[%clk 0:00:08.9]} 64... b4 {[%clk 0:00:09.6]} 65. Rd5+
{[%clk 0:00:06]} 65... Kc3 {[%clk 0:00:10.1]} 66. Ne4+ {[%clk 0:00:06.9]} 66...
Kc4 {[%clk 0:00:10]} 67. Re5 {[%clk 0:00:06.7]} 67... Kd4 {[%clk 0:00:11.1]} 68.
Nd2 {[%clk 0:00:07.8]} 68... Kxe5 {[%clk 0:00:07.4]} 69. Nxf3+ {[%clk
0:00:08.9]} 69... Ke4 {[%clk 0:00:09.3]} 70. Ng5+ {[%clk 0:00:09.8]} 70... Kd3
{[%clk 0:00:10.6]} 71. Nxh3 {[%clk 0:00:11.7]} 71... Kc2 {[%clk 0:00:11.6]} 72.
Nf4 {[%clk 0:00:13.6]} 72... b3 {[%clk 0:00:13]} 73. Ne2 {[%clk 0:00:15]} 73...
b2 {[%clk 0:00:13.9]} 74. Nd4+ {[%clk 0:00:16.5]} 74... Kc1 {[%clk 0:00:15]} 75.
Ne2+ {[%clk 0:00:17.2]} 75... Kc2 {[%clk 0:00:15.4]} 76. Nd4+ {[%clk 0:00:18.8]}
76... Kd3 {[%clk 0:00:12.6]} 0-1

[Event "*** Titled Tuesday Blitz"]
[Site "Chess.com"]
[Date "2020.02.04"]
[Round "5"]
[White "MartinCerveny"]
[Black "MikaelyanArman"]
[Result "0-1"]
[WhiteElo "2597"]
[BlackElo "2752"]
[TimeControl "180+2"]
[EndTime "14:09:31 PST"]
[Termination "MikaelyanArman won by resignation"]

1. d4 {[%clk 0:03:01.9]} 1... Nf6 {[%clk 0:03:00.8]} 2. c4 {[%clk 0:03:02.8]}
2... g6 {[%clk 0:03:02.1]} 3. Nc3 {[%clk 0:03:03.4]} 3... Bg7 {[%clk 0:03:03.2]}
4. e4 {[%clk 0:03:03.5]} 4... O-O {[%clk 0:03:04.3]} 5. f3 {[%clk 0:03:04.8]}
5... c5 {[%clk 0:03:04]} 6. d5 {[%clk 0:03:04.9]} 6... d6 {[%clk 0:03:05.4]} 7.
Bg5 {[%clk 0:03:02.3]} 7... e6 {[%clk 0:02:49.3]} 8. Nge2 {[%clk 0:03:01.6]}
8... Qa5 {[%clk 0:02:44.4]} 9. Qd2 {[%clk 0:02:59.5]} 9... exd5 {[%clk
0:02:38.8]} 10. Bxf6 {[%clk 0:02:42]} 10... Bxf6 {[%clk 0:02:36.6]} 11. Nxd5
{[%clk 0:02:42.6]} 11... Qxd2+ {[%clk 0:02:28.1]} 12. Kxd2 {[%clk 0:02:44.5]}
12... Bd8 {[%clk 0:02:29.8]} 13. g4 {[%clk 0:02:35.7]} 13... Nc6 {[%clk
0:02:30.6]} 14. Nec3 {[%clk 0:02:24.4]} 14... Nd4 {[%clk 0:02:07.1]} 15. Be2
{[%clk 0:02:23.2]} 15... Be6 {[%clk 0:02:01]} 16. h4 {[%clk 0:02:21.6]} 16... a6
{[%clk 0:01:57.1]} 17. h5 {[%clk 0:01:48.4]} 17... Rb8 {[%clk 0:01:41.7]} 18. b3
{[%clk 0:01:28]} 18... b5 {[%clk 0:01:41.5]} 19. Rab1 {[%clk 0:01:21.8]} 19...
b4 {[%clk 0:01:16]} 20. Nd1 {[%clk 0:01:17.7]} 20... Bg5+ {[%clk 0:01:13.1]} 21.
Kd3 {[%clk 0:01:07.4]} 21... a5 {[%clk 0:00:48.4]} 22. N1e3 {[%clk 0:01:05.5]}
22... a4 {[%clk 0:00:21.5]} 23. f4 {[%clk 0:01:05.7]} 23... Bd8 {[%clk
0:00:20.3]} 24. g5 {[%clk 0:01:03.1]} 24... axb3 {[%clk 0:00:20.1]} 25. axb3
{[%clk 0:01:05]} 25... Ra8 {[%clk 0:00:16.7]} 26. hxg6 {[%clk 0:01:03]} 26...
fxg6 {[%clk 0:00:16.3]} 27. Ra1 {[%clk 0:00:25.1]} 27... Ra3 {[%clk 0:00:13.4]}
28. Rxa3 {[%clk 0:00:24.5]} 28... bxa3 {[%clk 0:00:15.3]} 29. Ra1 {[%clk
0:00:24.8]} 29... Nxb3 {[%clk 0:00:12]} 30. Rxa3 {[%clk 0:00:25.5]} 30... Nc1+
{[%clk 0:00:09.6]} 31. Kd2 {[%clk 0:00:26.2]} 31... Nxe2 {[%clk 0:00:11.2]} 32.
Kxe2 {[%clk 0:00:28.1]} 32... Re8 {[%clk 0:00:08.2]} 33. Kd3 {[%clk 0:00:28.9]}
33... Bh3 {[%clk 0:00:03.9]} 34. Ra8 {[%clk 0:00:27.7]} 34... Kf8 {[%clk
0:00:04.9]} 35. e5 {[%clk 0:00:24.5]} 35... dxe5 {[%clk 0:00:05]} 36. fxe5
{[%clk 0:00:25.4]} 36... Bxg5 {[%clk 0:00:05.8]} 37. Rxe8+ {[%clk 0:00:21.3]}
37... Kxe8 {[%clk 0:00:07.7]} 38. Ke4 {[%clk 0:00:18.8]} 38... Be6 {[%clk
0:00:07.2]} 39. Ng2 {[%clk 0:00:18.2]} 39... h5 {[%clk 0:00:05.3]} 40. Ngf4
{[%clk 0:00:18.7]} 40... Bf5+ {[%clk 0:00:06.6]} 41. Kf3 {[%clk 0:00:19.2]}
41... Kd7 {[%clk 0:00:07.3]} 42. e6+ {[%clk 0:00:18.4]} 42... Bxe6 {[%clk
0:00:07.2]} 43. Nxg6 {[%clk 0:00:18.5]} 43... Bg4+ {[%clk 0:00:04.7]} 44. Ke4
{[%clk 0:00:19.1]} 44... Kd6 {[%clk 0:00:05.2]} 45. Ne5 {[%clk 0:00:20]} 45...
Be6 {[%clk 0:00:04.3]} 46. Nf3 {[%clk 0:00:19.1]} 46... Bc1 {[%clk 0:00:04.7]}
47. Ne5 {[%clk 0:00:19.5]} 47... Bh3 {[%clk 0:00:04]} 48. Nd3 {[%clk 0:00:16.7]}
48... Bg2+ {[%clk 0:00:04.7]} 49. Kf5 {[%clk 0:00:16.4]} 49... Bxd5 {[%clk
0:00:03.4]} 50. cxd5 {[%clk 0:00:17.6]} 50... Be3 {[%clk 0:00:03.9]} 51. Ke4
{[%clk 0:00:18.1]} 51... Bd4 {[%clk 0:00:04]} 52. Nf4 {[%clk 0:00:18.4]} 52...
h4 {[%clk 0:00:03.4]} 53. Nh3 {[%clk 0:00:19]} 53... Bg7 {[%clk 0:00:03.6]} 54.
Nf4 {[%clk 0:00:19.8]} 54... Be5 {[%clk 0:00:04.3]} 55. Nh3 {[%clk 0:00:20.7]}
55... Bg3 {[%clk 0:00:05.3]} 56. Ng5 {[%clk 0:00:21.3]} 56... Be1 {[%clk
0:00:05.5]} 57. Nh3 {[%clk 0:00:21.6]} 57... c4 {[%clk 0:00:06.8]} 58. Kd4
{[%clk 0:00:22.2]} 58... c3 {[%clk 0:00:08.1]} 59. Kd3 {[%clk 0:00:22.6]} 59...
Kxd5 {[%clk 0:00:08.7]} 60. Nf4+ {[%clk 0:00:23.6]} 60... Kc5 {[%clk 0:00:08.5]}
61. Nh3 {[%clk 0:00:20.5]} 61... Kb4 {[%clk 0:00:08.2]} 62. Kc2 {[%clk
0:00:19.4]} 62... Kc4 {[%clk 0:00:08.1]} 63. Nf4 {[%clk 0:00:19.7]} 63... Bg3
{[%clk 0:00:07.6]} 64. Ne2 {[%clk 0:00:17.1]} 64... Be5 {[%clk 0:00:07.5]} 65.
Ng1 {[%clk 0:00:18.1]} 65... Bd4 {[%clk 0:00:04.9]} 66. Nf3 {[%clk 0:00:14.9]}
66... Bf6 {[%clk 0:00:05.4]} 67. Ng1 {[%clk 0:00:14.9]} 67... Kd5 {[%clk
0:00:05.1]} 68. Kd3 {[%clk 0:00:14.9]} 68... Bd4 {[%clk 0:00:04.7]} 69. Nf3
{[%clk 0:00:15.6]} 69... h3 {[%clk 0:00:06]} 70. Nh2 {[%clk 0:00:15.5]} 70...
Be5 {[%clk 0:00:06.1]} 71. Ng4 {[%clk 0:00:16.3]} 71... Bg7 {[%clk 0:00:05.5]}
72. Nh2 {[%clk 0:00:16.6]} 72... Kc5 {[%clk 0:00:05.2]} 73. Nf3 {[%clk
0:00:16.7]} 73... Kb4 {[%clk 0:00:05.7]} 74. Kc2 {[%clk 0:00:17.6]} 74... Kc4
{[%clk 0:00:07]} 75. Nh2 {[%clk 0:00:18.4]} 75... Be5 {[%clk 0:00:06.2]} 76. Ng4
{[%clk 0:00:18.4]} 76... h2 {[%clk 0:00:06.6]} 77. Nf2 {[%clk 0:00:17.4]} 77...
Bd4 {[%clk 0:00:06.6]} 78. Nh1 {[%clk 0:00:17.7]} 78... Bg1 {[%clk 0:00:06.1]}
79. Ng3 {[%clk 0:00:17.8]} 79... Bf2 {[%clk 0:00:07.3]} 80. Nh1 {[%clk
0:00:18.4]} 80... Bh4 {[%clk 0:00:08.3]} 81. Kd1 {[%clk 0:00:19]} 81... Kd3
{[%clk 0:00:09.5]} 0-1

[Event "*** Titled Tuesday Blitz"]
[Site "Chess.com"]
[Date "2020.02.04"]
[Round "5"]
[White "VALPARAISO37"]
[Black "WPWPWP-2015"]
[Result "0-1"]
[WhiteElo "2261"]
[BlackElo "2524"]
[TimeControl "180+2"]
[EndTime "14:09:36 PST"]
[Termination "WPWPWP-2015 won by checkmate"]

1. d4 {[%clk 0:03:01.9]} 1... Nf6 {[%clk 0:02:46.4]} 2. c4 {[%clk 0:03:02.2]}
2... e6 {[%clk 0:02:03.9]} 3. Nc3 {[%clk 0:03:02.6]} 3... Bb4 {[%clk 0:02:03.6]}
4. a3 {[%clk 0:03:03.2]} 4... Bxc3+ {[%clk 0:02:01.9]} 5. bxc3 {[%clk
0:03:04.7]} 5... O-O {[%clk 0:02:03.3]} 6. e3 {[%clk 0:03:05.3]} 6... c5 {[%clk
0:02:04.5]} 7. Bd3 {[%clk 0:03:05.8]} 7... b6 {[%clk 0:02:05.9]} 8. Ne2 {[%clk
0:03:06.1]} 8... Nc6 {[%clk 0:02:07.1]} 9. f3 {[%clk 0:03:06.1]} 9... Ba6 {[%clk
0:02:08]} 10. Ng3 {[%clk 0:03:06.7]} 10... Rc8 {[%clk 0:02:08.2]} 11. d5 {[%clk
0:03:02.9]} 11... Na5 {[%clk 0:02:08.7]} 12. Qe2 {[%clk 0:03:01.4]} 12... Re8
{[%clk 0:01:58.7]} 13. O-O {[%clk 0:03:01.3]} 13... exd5 {[%clk 0:01:50.3]} 14.
cxd5 {[%clk 0:03:01.1]} 14... c4 {[%clk 0:01:51.7]} 15. Be4 {[%clk 0:02:58.7]}
15... Nb3 {[%clk 0:01:52.4]} 16. Ra2 {[%clk 0:02:56]} 16... Nc5 {[%clk
0:01:50.7]} 17. Qc2 {[%clk 0:02:44.2]} 17... d6 {[%clk 0:01:43.4]} 18. Rd1
{[%clk 0:02:44]} 18... Rc7 {[%clk 0:01:43.2]} 19. a4 {[%clk 0:02:43.3]} 19... g6
{[%clk 0:01:41.5]} 20. a5 {[%clk 0:02:43.5]} 20... b5 {[%clk 0:01:41.1]} 21. Qe2
{[%clk 0:02:37.9]} 21... Ncxe4 {[%clk 0:01:35.3]} 22. fxe4 {[%clk 0:02:36.7]}
22... Nxe4 {[%clk 0:01:37.2]} 23. Nxe4 {[%clk 0:02:31.9]} 23... Rxe4 {[%clk
0:01:39.1]} 24. Rd4 {[%clk 0:02:32.6]} 24... Rce7 {[%clk 0:01:36.5]} 25. Qf3
{[%clk 0:02:32.7]} 25... Rxd4 {[%clk 0:01:33.1]} 26. cxd4 {[%clk 0:02:33.2]}
26... b4 {[%clk 0:01:30.7]} 27. e4 {[%clk 0:02:33.7]} 27... c3 {[%clk
0:01:31.4]} 28. Bg5 {[%clk 0:02:31.2]} 28... b3 {[%clk 0:01:19.1]} 29. Rf2
{[%clk 0:02:27.8]} 29... b2 {[%clk 0:01:17.5]} 30. Qd1 {[%clk 0:02:15.7]} 30...
Rb7 {[%clk 0:01:09.5]} 31. Bxd8 {[%clk 0:02:02.6]} 31... b1=Q {[%clk 0:01:08.6]}
32. Rf1 {[%clk 0:02:02.5]} 32... Bxf1 {[%clk 0:00:51.2]} 33. Qxf1 {[%clk
0:01:49.1]} 33... Qxf1+ {[%clk 0:00:47.2]} 34. Kxf1 {[%clk 0:01:50.2]} 34... c2
{[%clk 0:00:48.7]} 35. a6 {[%clk 0:01:50.7]} 35... c1=Q+ {[%clk 0:00:47.6]} 36.
Ke2 {[%clk 0:01:50.6]} 36... Rb2+ {[%clk 0:00:47.3]} 37. Kf3 {[%clk 0:01:49.4]}
37... h5 {[%clk 0:00:46.3]} 38. Kg3 {[%clk 0:01:45.7]} 38... Qe3+ {[%clk
0:00:44.2]} 39. Kh4 {[%clk 0:01:45]} 39... Kg7 {[%clk 0:00:43.1]} 40. Bg5 {[%clk
0:01:42.3]} 40... Qe2 {[%clk 0:00:42.2]} 41. h3 {[%clk 0:01:38.3]} 41... Qe1+
{[%clk 0:00:42.6]} 42. g3 {[%clk 0:01:37]} 42... Rf2 {[%clk 0:00:42.5]} 43. e5
{[%clk 0:01:35.2]} 43... Kf8 {[%clk 0:00:42.6]} 44. Bh6+ {[%clk 0:01:32.9]}
44... Ke8 {[%clk 0:00:42.7]} 45. Kg5 {[%clk 0:01:33.8]} 45... Kd7 {[%clk
0:00:42.8]} 46. Bf8 {[%clk 0:01:31]} 46... Qe3+ {[%clk 0:00:39.1]} 47. Kh4
{[%clk 0:01:28.6]} 47... Qxd4+ {[%clk 0:00:36.7]} 48. Kg5 {[%clk 0:01:29]} 48...
Qxe5+ {[%clk 0:00:35.3]} 49. Kh4 {[%clk 0:01:27.9]} 49... Qxd5 {[%clk
0:00:34.4]} 50. Bg7 {[%clk 0:01:27.3]} 50... Ra2 {[%clk 0:00:31.9]} 51. Bd4
{[%clk 0:01:23.7]} 51... Rxa6 {[%clk 0:00:32.2]} 52. Bxa7 {[%clk 0:01:22.9]}
52... Qf5 {[%clk 0:00:31.4]} 53. Be3 {[%clk 0:01:20.8]} 53... Ra1 {[%clk
0:00:29.7]} 54. Bf4 {[%clk 0:01:18.5]} 54... f6 {[%clk 0:00:29.2]} 55. Bg5
{[%clk 0:01:17.6]} 55... Ke6 {[%clk 0:00:28.6]} 56. Bxf6 {[%clk 0:01:16]} 56...
Rh1 {[%clk 0:00:28.8]} 57. Be5 {[%clk 0:01:12.1]} 57... d5 {[%clk 0:00:28.9]}
58. Bd4 {[%clk 0:01:10]} 58... Kd7 {[%clk 0:00:28.7]} 59. Bg1 {[%clk 0:01:08.5]}
59... Kc6 {[%clk 0:00:27.8]} 60. Bd4 {[%clk 0:01:08.4]} 60... Kb5 {[%clk
0:00:28.7]} 61. Bg1 {[%clk 0:01:06.6]} 61... Ka4 {[%clk 0:00:29.2]} 62. Bd4
{[%clk 0:01:07.2]} 62... Kb3 {[%clk 0:00:30]} 63. Bg1 {[%clk 0:01:07.1]} 63...
d4 {[%clk 0:00:30.6]} 64. Bxd4 {[%clk 0:01:07.2]} 64... Kc2 {[%clk 0:00:31.5]}
65. Bg1 {[%clk 0:01:07.4]} 65... Kd1 {[%clk 0:00:31.6]} 66. Bd4 {[%clk
0:01:07.9]} 66... Ke2 {[%clk 0:00:32]} 67. Bg1 {[%clk 0:01:08]} 67... Kf3 {[%clk
0:00:32]} 68. Bd4 {[%clk 0:01:06.7]} 68... Qb5 {[%clk 0:00:27.9]} 69. Bg1 {[%clk
0:01:05.1]} 69... Qd5 {[%clk 0:00:27.4]} 70. Bd4 {[%clk 0:01:04.5]} 70... Kg2
{[%clk 0:00:27.2]} 71. Bg1 {[%clk 0:01:04.3]} 71... Qe6 {[%clk 0:00:26.1]} 72.
Bd4 {[%clk 0:01:04.1]} 72... Rxh3+ {[%clk 0:00:26.3]} 73. Kg5 {[%clk 0:01:03.3]}
73... Qf5+ {[%clk 0:00:26.9]} 74. Kh6 {[%clk 0:01:02.9]} 74... Qg4 {[%clk
0:00:26.7]} 75. Be5 {[%clk 0:01:01.7]} 75... Kf3 {[%clk 0:00:27.4]} 76. Bf4
{[%clk 0:01:01.1]} 76... Rxg3 {[%clk 0:00:24.5]} 77. Bg5 {[%clk 0:01:00.6]}
77... Qf5 {[%clk 0:00:23.7]} 78. Bh4 {[%clk 0:00:58.9]} 78... Rg4 {[%clk
0:00:18.3]} 79. Be1 {[%clk 0:00:56.6]} 79... Qf7 {[%clk 0:00:16.5]} 80. Bc3
{[%clk 0:00:53.5]} 80... Re4 {[%clk 0:00:16.5]} 81. Kg5 {[%clk 0:00:51.2]} 81...
Qf5+ {[%clk 0:00:13]} 82. Kh6 {[%clk 0:00:49.9]} 82... Re7 {[%clk 0:00:13.6]}
83. Bd2 {[%clk 0:00:46.2]} 83... Rf7 {[%clk 0:00:13.7]} 84. Bc1 {[%clk
0:00:44.8]} 84... Kg4 {[%clk 0:00:14.7]} 85. Bd2 {[%clk 0:00:44.1]} 85... Qe6
{[%clk 0:00:15.5]} 86. Be3 {[%clk 0:00:42.3]} 86... g5# {[%clk 0:00:16]} 0-1